bitfinex/quotes_SOLUSD_20250724
["timestamp","ask_amount","ask_price","bid_price","bid_amount"]
[1753360173456,5.36031367,186.56,186.53,89.03]
[1753360173653,4.65641176,186.54,186.53,89.03]
[1753360174273,26.0,186.53,186.49,0.06]
[1753360174452,9.31282352,186.5,186.4,88.97]
[1753360174654,4.65641176,186.43,186.35,0.06]
[1753360175153,4.65641176,186.43,186.36,5.3658983]
[1753360175750,4.65641176,186.43,186.37,5.36560227]
[1753360176361,4.65641176,186.44,186.39,4.65641176]
[1753360176564,4.65641176,186.43,186.38,21.78541887]
[1753360177382,4.65641176,186.44,186.39,4.65641176]
[1753360177673,4.65641176,186.44,186.39,10.02135294]
[1753360177859,4.65641176,186.43,186.39,5.36494118]
[1753360178060,4.65641176,186.43,186.38,27.15078885]
[1753360178258,30.65641176,186.43,186.38,0.06]
[1753360179769,36.02035533,186.43,186.38,0.06]
[1753360180086,54.08662601,186.43,186.38,0.06]
[1753360180254,9.31282352,186.39,186.38,0.06]
[1753360181880,14.67791821,186.39,186.38,0.06]
[1753360182072,17.47647804,186.39,186.38,0.06]
[1753360184379,12.82006628,186.39,186.38,0.06]
[1753360186280,43.47647804,186.39,186.38,1e-08]
[1753360186462,26.0,186.36,186.35,0.06]
[1753360186664,30.65641176,186.36,186.35,0.06]
[1753360187059,26.0,186.35,186.34,0.06]
[1753360187269,42.78468397,186.34,186.31,0.06]
[1753360187468,9.31282352,186.32,186.31,0.06]
[1753360187782,4.65641176,186.32,186.31,0.06]
[1753360187986,10.0235221,186.32,186.31,0.06]
[1753360188173,5.36711034,186.32,186.31,0.06]
[1753360188375,4.65641176,186.32,186.31,0.06]
[1753360189173,33.6167202,186.32,186.31,0.06]
[1753360190180,26.0,186.32,186.31,0.06]
[1753360190481,33.6167202,186.32,186.31,0.06]
[1753360190858,38.98383054,186.32,186.31,0.06]
[1753360191055,26.0,186.32,186.31,0.06]
[1753360191284,5.6036964,186.39,186.31,0.06]
[1753360191285,5.36538255,186.38,186.31,7.6767202]
[1753360191587,5.36538255,186.38,186.32,7.6167202]
[1753360191588,7.6167202,186.37,186.32,7.6167202]
[1753360191794,2.79855983,186.39,186.35,7.6167202]
[1753360192161,10.41528003,186.39,186.34,7.6167202]
[1753360192365,2.79855983,186.39,186.35,7.6167202]
[1753360192567,8.1637262,186.39,186.35,7.6167202]
[1753360192886,2.79855983,186.39,186.34,7.6167202]
[1753360193061,8.16376088,186.39,186.34,7.6167202]
[1753360193382,8.16376088,186.39,186.35,7.6167202]
[1753360193701,2.79855983,186.39,186.35,7.6167202]
[1753360194284,2.79855983,186.39,186.36,7.90104334]
[1753360194463,13.85977815,186.43,186.38,7.6167202]
[1753360194866,16.65736947,186.43,186.38,7.6167202]
[1753360195479,5.3644432,186.42,186.39,7.6167202]
[1753360195663,9.04064927,186.43,186.4,7.6167202]
[1753360195664,14.4046544,186.43,186.4,7.6167202]
[1753360195864,14.4046544,186.43,186.41,7.6167202]
[1753360195865,8.16159645,186.43,186.41,7.6167202]
[1753360196064,8.16159645,186.43,186.4,7.6167202]
[1753360196381,33.6167202,186.46,186.41,7.6167202]
[1753360196382,5.36308055,186.46,186.41,7.6167202]
[1753360196566,15.77702656,186.46,186.4,7.6167202]
[1753360196888,15.77702656,186.46,186.43,7.6167202]
[1753360196889,2.79722581,186.46,186.43,7.6167202]
[1753360197071,7.6167202,186.48,186.43,7.6167202]
[1753360197263,2.79680539,186.48,186.45,7.6167202]
[1753360197459,2.79680539,186.48,186.47,7.6167202]
[1753360197687,7.6167202,186.55,186.48,17.06900711]
[1753360197984,7.6167202,186.55,186.4,5.34574908]
[1753360197985,7.6167202,186.49,186.41,16.78468397]
[1753360198184,7.6167202,186.47,186.43,0.28432314]
[1753360198359,7.6167202,186.5,186.45,0.28432314]
[1753360198978,2.79582957,186.53,186.49,7.6167202]
[1753360199287,2.79582957,186.53,186.5,0.28432314]
[1753360199588,18.7607204,186.56,186.47,0.28432314]
[1753360199768,7.6167202,186.53,186.48,7.6167202]
[1753360199970,2.79618768,186.55,186.5,7.6167202]
[1753360200162,7.6167202,186.51,186.39,0.53650946]
[1753360200364,26.0,186.49,186.36,5.36595836]
[1753360200594,16.78468397,186.49,186.33,5.3668223]
[1753360200771,7.6167202,186.44,186.38,7.6167202]
[1753360200977,7.6167202,186.45,186.39,7.6167202]
[1753360201166,7.6167202,186.4,186.33,5.3668223]
[1753360201375,7.6167202,186.4,186.35,7.6167202]
[1753360201568,7.6167202,186.4,186.35,12.98283207]
[1753360201891,7.6167202,186.37,186.32,5.36708144]
[1753360202090,7.6167202,186.37,186.33,16.78468397]
[1753360202273,7.6167202,186.37,186.34,0.28432314]
[1753360202468,7.6167202,186.37,186.33,16.78468397]
[1753360202662,7.6167202,186.41,186.36,7.90104334]
[1753360202900,7.6167202,186.45,186.4,7.6167202]
[1753360203101,7.6167202,186.45,186.37,0.28432314]
[1753360203102,7.6167202,186.47,186.42,7.6167202]
[1753360203394,0.03,186.48,186.45,7.6167202]
[1753360203573,0.03,186.48,186.46,7.6167202]
[1753360204303,7.6167202,186.47,186.4,0.53648068]
[1753360204473,26.03,186.48,186.38,0.14216157]
[1753360204474,0.03,186.48,186.38,0.14216157]
[1753360204672,0.03,186.48,186.38,16.92684554]
[1753360204871,26.0,186.46,186.36,0.14216157]
[1753360205077,7.6167202,186.45,186.34,5.36653429]
[1753360205311,7.6167202,186.45,186.33,0.06]
[1753360205312,7.6167202,186.38,186.33,0.06]
[1753360205505,7.6167202,186.36,186.33,0.06]
[1753360205802,7.6167202,186.39,186.34,7.6167202]
[1753360206105,5.36279294,186.47,186.35,26.53662463]
[1753360206402,7.6167202,186.4,186.35,16.92684554]
[1753360206705,7.6167202,186.4,186.35,24.54356574]
[1753360206881,7.6167202,186.4,186.35,16.92684554]
[1753360207080,26.0,186.44,186.35,16.92684554]
[1753360207081,26.0,186.42,186.35,16.92684554]
[1753360207303,11.47736323,186.4,186.36,0.14216157]
[1753360207476,11.47736323,186.39,186.35,0.14216157]
[1753360207802,11.47736323,186.39,186.35,0.28432314]
[1753360208006,11.47736323,186.39,186.35,0.14216157]
[1753360208206,5.36451907,186.41,186.35,0.14216157]
[1753360208406,11.47736323,186.4,186.35,11.6195248]
[1753360208623,16.86992929,186.48,186.39,11.6195248]
[1753360208924,11.47736323,186.47,186.42,11.47736323]
[1753360209129,11.47736323,186.46,186.4,11.47736323]
[1753360209401,5.39256606,186.48,186.4,11.47736323]
[1753360209402,0.03,186.48,186.4,11.76168637]
[1753360209591,11.47736323,186.41,186.33,0.06]
[1753360209796,11.47736323,186.39,186.35,26.0]
[1753360210002,11.47736323,186.36,186.33,0.06]
[1753360210186,11.47736323,186.34,186.33,0.06]
[1753360211303,16.84389752,186.34,186.33,0.06]
[1753360212029,26.0,186.32,186.31,0.06]
[1753360212323,37.47736323,186.32,186.31,0.06]
[1753360213298,42.84447357,186.32,186.31,0.06]
[1753360214901,42.84447357,186.32,186.3,1e-08]
[1753360214902,39.73941043,186.31,186.3,1e-08]
[1753360215282,16.78468397,186.3,186.29,1e-08]
[1753360215490,26.0,186.28,186.27,1e-08]
[1753360215678,37.47736323,186.28,186.27,1e-08]
[1753360216308,11.47736323,186.3,186.27,1e-08]
[1753360216606,11.47736323,186.28,186.27,1e-08]
[1753360216807,37.47736323,186.28,186.27,1e-08]
[1753360216990,26.0,186.28,186.27,1e-08]
[1753360217191,37.47736323,186.28,186.27,1e-08]
[1753360217394,42.84562606,186.28,186.27,1e-08]
[1753360217795,37.47736323,186.28,186.27,1e-08]
[1753360218004,42.84562606,186.28,186.27,1e-08]
[1753360218711,11.47736323,186.28,186.27,1e-08]
[1753360219500,16.84539007,186.29,186.27,1e-08]
[1753360219705,11.47736323,186.31,186.27,1e-08]
[1753360219906,16.84453321,186.32,186.27,11.47736324]
[1753360220115,2.79931859,186.31,186.27,1e-08]
[1753360220412,11.47736323,186.36,186.3,11.47736323]
[1753360220413,5.36659563,186.34,186.3,11.47736323]
[1753360220586,8.16558099,186.34,186.3,11.47736323]
[1753360221593,8.16558099,186.34,186.27,1e-08]
[1753360221802,11.47736323,186.33,186.29,0.28432314]
[1753360222913,16.84426168,186.33,186.29,0.28432314]
[1753360223112,5.36689845,186.33,186.29,11.76168637]
[1753360223514,11.47736323,186.32,186.29,0.28432314]
[1753360223755,11.47736323,186.33,186.29,0.28432314]
[1753360223898,19.64291479,186.34,186.29,11.76168637]
[1753360224093,19.64291479,186.34,186.29,11.47736323]
[1753360224421,11.47736323,186.33,186.29,0.28432314]
[1753360224826,2.79898536,186.34,186.32,11.47736323]
[1753360225029,5.36572013,186.37,186.33,11.47736323]
[1753360225234,5.36572013,186.37,186.3,5.65175548]
[1753360225235,11.47736323,186.35,186.3,11.76168637]
[1753360225797,11.47736323,186.32,186.3,0.14216157]
[1753360226027,11.47736323,186.32,186.27,0.28432315]
[1753360226320,11.47736323,186.32,186.27,17.13018766]
[1753360226704,11.47736323,186.32,186.27,11.76168638]
[1753360227218,11.47736323,186.33,186.29,0.28432314]
[1753360227410,11.47736323,186.3,186.27,1e-08]
[1753360227615,11.47736323,186.31,186.27,1e-08]
[1753360227815,5.36676489,186.34,186.28,11.76168637]
[1753360227816,11.47736323,186.33,186.28,11.76168637]
[1753360228001,14.27595803,186.37,186.32,11.47736323]
[1753360228327,8.16452441,186.37,186.33,11.47736323]
[1753360229323,8.16452441,186.37,186.33,7.60786081]
[1753360229526,15.77238522,186.37,186.33,0.28432314]
[1753360230114,8.16452441,186.37,186.3,0.28432314]
[1753360230321,7.60786081,186.34,186.3,0.28432314]
[1753360231145,7.60786081,186.33,186.3,0.28432314]
[1753360231349,12.97448776,186.34,186.3,0.28432314]
[1753360231638,7.60786081,186.34,186.3,0.28432314]
[1753360232009,7.60786081,186.33,186.28,7.60786081]
[1753360232209,7.60786081,186.33,186.27,1e-08]
[1753360232210,7.60786081,186.32,186.27,7.89218396]
[1753360232410,26.0,186.35,186.29,0.28432314]
[1753360232411,33.60786081,186.33,186.29,0.28432314]
[1753360232731,7.60786081,186.35,186.3,7.60786081]
[1753360232931,41.1985948,186.37,186.34,0.28432314]
[1753360233132,41.1985948,186.37,186.36,0.28432314]
[1753360233305,38.9,186.37,186.36,7.89218395]
[1753360234028,38.9,186.41,186.37,0.28432314]
[1753360234229,38.9,186.41,186.37,7.89218395]
[1753360234536,2.797801,186.42,186.41,0.28432314]
[1753360234835,38.9,186.43,186.41,0.28432314]
[1753360235635,7.60786081,186.42,186.35,17.06900711]
[1753360235827,7.60786081,186.4,186.35,24.67686792]
[1753360236439,7.60786081,186.41,186.37,0.28432314]
[1753360236625,5.36480686,186.4,186.37,0.28432314]
[1753360236819,12.97266767,186.4,186.33,5.3668223]
[1753360237029,7.60786081,186.39,186.34,7.75002238]
[1753360237336,38.88,186.38,186.35,0.14216157]
[1753360237542,38.88,186.38,186.36,0.14216157]
[1753360238339,38.38,186.38,186.36,0.14216157]
[1753360239238,38.38,186.38,186.37,7.89218395]
[1753360240736,38.38,186.38,186.37,0.28432314]
[1753360240929,33.60786081,186.42,186.38,0.28432314]
[1753360241148,38.84,186.41,186.38,7.89218395]
[1753360241526,38.8,186.41,186.38,7.89218395]
[1753360241916,2.8034115,186.51,186.41,16.11]
[1753360242133,0.03,186.57,186.47,24.67686792]
[1753360242341,0.03,186.57,186.47,27.87932191]
[1753360242630,0.03,186.57,186.47,17.06900711]
[1753360242631,7.63786081,186.52,186.47,17.06900711]
[1753360242820,7.60786081,186.5,186.47,0.28432314]
[1753360243018,0.03,186.52,186.47,8.42846324]
[1753360243213,0.03,186.52,186.47,13.79125618]
[1753360244533,0.03,186.52,186.47,13.25497689]
[1753360245113,7.63786081,186.48,186.4,16.78468397]
[1753360245313,7.60786081,186.47,186.42,16.78468397]
[1753360245619,7.60786081,186.46,186.42,16.78468397]
[1753360245946,7.60786081,186.47,186.42,16.78468397]
[1753360246147,7.60786081,186.46,186.42,16.78468397]
[1753360246323,7.60786081,186.46,186.43,0.28432314]
[1753360246524,0.03,186.48,186.39,7.60786081]
[1753360246525,7.60786081,186.44,186.39,7.60786081]
[1753360246830,7.60786081,186.44,186.39,7.89218395]
[1753360247242,11.47214791,186.44,186.39,16.83701879]
[1753360247431,11.47214791,186.46,186.4,11.47214791]
[1753360247632,0.03,186.48,186.43,11.47214791]
[1753360247828,11.47214791,186.46,186.41,11.75647105]
[1753360248021,11.47214791,186.45,186.41,0.14216157]
[1753360248348,11.47214791,186.44,186.41,0.14216157]
[1753360248540,11.47214791,186.43,186.38,0.14216157]
[1753360248843,5.39257236,186.48,186.4,0.14216157]
[1753360249142,11.47214791,186.44,186.4,0.14216157]
[1753360249649,11.47214791,186.43,186.39,0.14216157]
[1753360250145,26.0,186.46,186.31,5.36739842]
[1753360250443,11.47214791,186.35,186.3,5.42764602]
[1753360250748,11.47214791,186.35,186.31,0.28432314]
[1753360251045,26.0,186.4,186.31,0.28432314]
[1753360251249,11.47214791,186.34,186.3,5.42764602]
[1753360251946,11.47214791,186.34,186.31,0.28432314]
[1753360252152,11.47214791,186.35,186.31,0.28432314]
[1753360252445,11.47214791,186.36,186.31,11.61430948]
[1753360252620,11.47214791,186.37,186.32,11.47214791]
[1753360252822,11.47214791,186.39,186.34,11.47214791]
[1753360253049,11.47214791,186.39,186.33,11.47214791]
[1753360254128,11.47214791,186.39,186.33,16.8389552]
[1753360254322,11.47214791,186.42,186.37,11.47214791]
[1753360254645,11.47214791,186.4,186.35,11.47214791]
[1753360255225,11.47214791,186.4,186.34,11.75647105]
[1753360256149,39.22,186.42,186.3,16.84468397]
[1753360256150,16.83843449,186.35,186.3,0.06]
[1753360256444,11.47214791,186.33,186.3,0.06]
[1753360256621,11.47214791,186.32,186.3,0.06]
[1753360256826,26.0,186.32,186.3,0.06]
[1753360257046,11.47214791,186.31,186.3,0.06]
[1753360258242,16.83954633,186.31,186.3,0.06]
[1753360258935,56.01954633,186.31,186.3,0.06]
[1753360259339,55.99954633,186.31,186.3,0.06]
[1753360259950,44.52739842,186.31,186.3,0.06]
[1753360260159,11.47214791,186.31,186.3,0.06]
[1753360260326,5.36451907,186.41,186.3,11.53214791]
[1753360260529,11.47214791,186.4,186.34,11.47214791]
[1753360260849,11.47214791,186.36,186.31,11.47214791]
[1753360261151,11.47214791,186.37,186.31,11.47214791]
[1753360261355,11.47214791,186.32,186.3,0.06]
[1753360261523,11.47214791,186.31,186.3,0.06]
[1753360262353,5.36739842,186.31,186.3,0.06]
[1753360262551,16.83954633,186.31,186.3,0.06]
[1753360262739,26.0,186.28,186.27,1e-08]
[1753360263048,11.47214791,186.28,186.27,1e-08]
[1753360263931,50.67214791,186.28,186.27,1e-08]
[1753360264430,16.78468397,186.27,186.23,0.2]
[1753360264628,11.47214791,186.26,186.23,0.2]
[1753360265737,37.47214791,186.26,186.23,0.2]
[1753360266744,42.84098716,186.26,186.23,0.2]
[1753360267142,56.02098716,186.26,186.23,0.2]
[1753360267460,26.0,186.24,186.23,0.2]
[1753360267655,37.47214791,186.24,186.23,0.2]
[1753360268234,44.54883925,186.26,186.23,0.2]
[1753360268430,11.47214791,186.25,186.23,0.2]
[1753360268655,42.84156371,186.24,186.23,0.2]
[1753360269940,76.67214791,186.24,186.23,0.2]
[1753360270341,39.2,186.24,186.23,0.2]
[1753360270552,5.3682859,186.28,186.23,0.2]
[1753360270757,5.36883925,186.26,186.23,0.2]
[1753360271464,12.98829131,186.26,186.23,0.2]
[1753360271858,7.61945206,186.25,186.23,0.2]
[1753360272863,46.81945206,186.24,186.23,0.2]
[1753360273845,26.0,186.24,186.23,0.2]
[1753360274042,39.18,186.24,186.23,0.2]
[1753360274248,39.18,186.25,186.23,0.2]
[1753360274455,39.18,186.26,186.23,0.2]
[1753360274851,52.16829677,186.26,186.23,0.2]
[1753360275057,7.61945206,186.24,186.23,0.2]
[1753360276755,12.98886786,186.24,186.23,0.2]
[1753360278871,38.98886786,186.24,186.23,0.2]
[1753360279069,78.12886786,186.24,186.23,0.2]
[1753360279580,31.3694158,186.24,186.23,0.2]
[1753360279766,70.5094158,186.24,186.23,0.2]
[1753360280279,78.12886786,186.24,186.23,0.2]
[1753360281374,52.12886786,186.24,186.23,0.2]
[1753360281573,52.12886786,186.24,186.22,0.06]
[1753360281780,7.61945206,186.23,186.22,0.06]
[1753360282661,15.23890412,186.23,186.22,0.06]
[1753360282975,12.98915618,186.23,186.22,0.06]
[1753360283166,15.79050324,186.23,186.22,0.06]
[1753360283795,80.89050324,186.23,186.22,0.06]
[1753360284276,41.79050324,186.23,186.22,0.06]
[1753360284466,52.08915618,186.23,186.22,0.06]
[1753360291083,52.00915618,186.23,186.22,0.06]
[1753360291258,44.38970412,186.23,186.22,0.06]
[1753360291455,52.00915618,186.23,186.22,0.06]
[1753360292472,2.80062174,186.25,186.22,0.06]
[1753360292674,39.02,186.24,186.22,0.06]
[1753360293558,39.0,186.25,186.23,7.61945206]
[1753360293780,26.0,186.3,186.24,7.9037752]
[1753360293984,5.36631318,186.35,186.29,7.61945206]
[1753360294300,39.04,186.34,186.3,7.61945206]
[1753360294598,7.61945206,186.33,186.28,7.61945206]
[1753360294889,39.04,186.32,186.31,7.61945206]
[1753360295097,39.04,186.32,186.29,7.61945206]
[1753360295297,44.40716365,186.32,186.28,7.61945206]
[1753360295674,52.02661571,186.32,186.27,7.61945206]
[1753360295865,44.40716365,186.32,186.28,7.61945206]
[1753360296067,7.61945206,186.31,186.25,5.65338703]
[1753360296292,39.04,186.3,186.25,7.9037752]
[1753360296873,39.04,186.3,186.27,7.61945206]
[1753360298067,44.40769002,186.3,186.27,0.28432314]
[1753360298368,39.04,186.3,186.26,7.61945206]
[1753360298813,44.40776945,186.3,186.26,7.61945206]
[1753360299095,44.40776945,186.3,186.25,7.9037752]
[1753360299302,7.61945206,186.29,186.22,0.06]
[1753360299506,7.61945206,186.25,186.22,0.06]
[1753360299997,26.0,186.29,186.22,0.06]
[1753360299998,46.61945206,186.24,186.22,0.06]
[1753360300388,7.61945206,186.23,186.22,0.06]
[1753360301168,12.98915618,186.23,186.22,0.06]
[1753360302067,13.42036112,186.29,186.22,0.06]
[1753360302389,7.61945206,186.25,186.22,0.06]
[1753360302589,38.98,186.24,186.22,0.06]
[1753360303386,44.34942944,186.24,186.22,0.06]
[1753360303589,7.61945206,186.23,186.22,0.06]
[1753360304488,24.40413603,186.23,186.22,0.06]
[1753360305512,77.94915618,186.23,186.22,0.06]
[1753360306593,68.73384015,186.23,186.22,0.06]
[1753360307177,68.73384015,186.23,186.22,1e-08]
[1753360307377,76.35329221,186.23,186.22,1e-08]
[1753360307875,42.78468397,186.21,186.2,1e-08]
[1753360308077,89.36413603,186.21,186.2,1e-08]
[1753360308676,89.36413603,186.21,186.19,1e-08]
[1753360308877,24.40413603,186.2,186.19,1e-08]
[1753360309100,42.78468397,186.17,186.16,0.2]
[1753360309294,89.34413603,186.17,186.16,0.2]
[1753360309603,94.71557074,186.17,186.16,0.2]
[1753360309991,38.99088677,186.17,186.16,0.2]
[1753360310196,77.93088677,186.17,186.16,0.2]
[1753360310400,70.31143471,186.17,186.16,0.2]
[1753360310594,38.99088677,186.17,186.16,0.2]
[1753360310781,77.93088677,186.17,186.16,0.2]
[1753360312005,38.99088677,186.17,186.16,0.2]
[1753360312201,77.93088677,186.17,186.16,0.2]
[1753360312990,94.69557074,186.17,186.16,0.2]
[1753360313826,94.69557074,186.17,186.16,1e-08]
[1753360314682,97.49847395,186.17,186.16,1e-08]
[1753360314884,97.49847395,186.17,186.14,1e-08]
[1753360315184,24.40413603,186.15,186.14,1e-08]
[1753360315392,63.30413603,186.15,186.14,1e-08]
[1753360315707,68.67614784,186.15,186.14,1e-08]
[1753360320010,42.78468397,186.12,186.1,0.06]
[1753360320213,89.26413603,186.12,186.1,0.06]
[1753360320804,33.61945206,186.12,186.1,0.06]
[1753360320996,10.42235527,186.17,186.11,7.81945206]
[1753360321347,2.80290321,186.17,186.15,7.61945206]
[1753360321519,38.88,186.18,186.16,7.61945206]
[1753360321819,51.87075526,186.18,186.13,7.61945206]
[1753360322119,38.88,186.17,186.15,7.61945206]
[1753360322422,38.88,186.17,186.13,7.61945206]
[1753360322990,46.49945206,186.17,186.12,7.9037752]
[1753360323191,7.61945206,186.13,186.11,0.2]
[1753360323504,46.49945206,186.13,186.11,0.2]
[1753360323697,12.99232977,186.12,186.11,0.2]
[1753360324104,5.37287771,186.12,186.11,0.2]
[1753360324594,46.49945206,186.13,186.11,0.2]
[1753360324595,51.87208058,186.13,186.11,0.2]
[1753360324919,38.9,186.13,186.11,0.2]
[1753360325391,7.61945206,186.19,186.12,7.61945206]
[1753360325594,44.25136914,186.18,186.13,7.61945206]
[1753360325795,51.8708212,186.18,186.13,7.61945206]
[1753360326025,7.61945206,186.17,186.12,7.61945206]
[1753360326208,38.88,186.16,186.12,7.61945206]
[1753360327309,38.88,186.16,186.13,7.9037752]
[1753360327509,38.88,186.16,186.14,7.61945206]
[1753360327714,38.88,186.16,186.13,7.9037752]
[1753360328523,44.25177874,186.16,186.11,0.2]
[1753360328723,51.8712308,186.16,186.11,7.81945206]
[1753360329330,44.25177874,186.16,186.12,7.61945206]
[1753360329522,51.8712308,186.16,186.11,0.2]
[1753360329722,51.8712308,186.16,186.11,7.81945206]
[1753360329904,5.37145685,186.17,186.13,7.61945206]
[1753360330216,38.84,186.15,186.13,7.61945206]
[1753360330415,5.37115684,186.18,186.14,7.61945206]
[1753360330617,38.82,186.17,186.14,7.61945206]
[1753360331401,44.19152574,186.17,186.13,7.61945206]
[1753360332232,38.82,186.17,186.13,7.61945206]
[1753360333108,38.82,186.17,186.14,7.61945206]
[1753360333434,38.82,186.17,186.15,7.61945206]
[1753360334229,2.80147442,186.21,186.16,7.9037752]
[1753360334407,38.78,186.2,186.19,7.61945206]
[1753360334613,38.81,186.22,186.19,7.61945206]
[1753360334814,0.03,186.22,186.21,7.61945206]
[1753360335128,0.03,186.22,186.2,7.61945206]
[1753360335340,0.03,186.22,186.21,7.61945206]
[1753360335822,0.03,186.22,186.2,0.28432314]
[1753360336021,0.03,186.22,186.21,7.61945206]
[1753360336532,7.64945206,186.22,186.13,0.28432314]
[1753360336832,38.78,186.21,186.2,7.61945206]
[1753360337029,38.83,186.22,186.2,7.61945206]
[1753360337220,38.83,186.22,186.21,7.61945206]
[1753360338312,0.03,186.22,186.21,13.27405606]
[1753360339714,0.03,186.22,186.21,7.9037752]
[1753360339919,0.03,186.22,186.21,13.27405606]
[1753360340421,0.03,186.22,186.21,7.9037752]
[1753360340619,0.03,186.22,186.21,13.27405606]
[1753360340843,0.03,186.22,186.21,7.9037752]
[1753360341418,0.03,186.22,186.21,7.61945206]
[1753360341830,0.03,186.22,186.2,7.61945206]
[1753360343241,0.03,186.22,186.21,7.61945206]
[1753360343446,0.03,186.22,186.21,7.9037752]
[1753360343638,0.03,186.23,186.22,0.28432314]
[1753360343829,0.03,186.23,186.22,16.0602265]
[1753360344222,0.03,186.23,186.22,38.21490295]
[1753360344948,0.03,186.23,186.22,13.27376768]
[1753360345145,0.03,186.23,186.22,13.81076692]
[1753360345339,0.03,186.23,186.22,38.21490295]
[1753360345857,0.03,186.26,186.25,43.06900711]
[1753360346148,0.03,186.27,186.26,17.06900711]
[1753360346324,0.03,186.27,186.26,13.27261445]
[1753360347140,0.03,186.27,186.26,7.9037752]
[1753360348044,0.03,186.27,186.25,7.61945206]
[1753360348355,0.03,186.27,186.26,7.61945206]
[1753360349218,0.03,186.27,186.26,7.9037752]
[1753360350634,0.03,186.27,186.22,26.0]
[1753360350841,7.61945206,186.26,186.21,7.61945206]
[1753360351048,7.61945206,186.26,186.22,0.28432314]
[1753360351751,7.61945206,186.26,186.21,7.61945206]
[1753360352061,7.61945206,186.26,186.22,0.28432314]
[1753360352226,7.61945206,186.26,186.22,0.14216157]
[1753360352631,0.03,186.27,186.23,7.61945206]
[1753360352843,0.03,186.27,186.24,0.28432314]
[1753360353154,0.03,186.27,186.22,0.14216157]
[1753360353155,7.61945206,186.25,186.22,0.28432314]
[1753360353547,7.61945206,186.23,186.16,7.61945206]
[1753360353746,7.61945206,186.21,186.17,0.28432314]
[1753360354048,7.61945206,186.22,186.17,7.61945206]
[1753360354432,7.61945206,186.22,186.18,0.14216157]
[1753360354738,7.61945206,186.22,186.17,12.99079781]
[1753360354935,38.72,186.26,186.21,0.28432314]
[1753360354936,51.70834611,186.26,186.21,0.28432314]
[1753360355148,51.70834611,186.26,186.21,7.9037752]
[1753360355556,7.61945206,186.25,186.21,0.28432314]
[1753360356257,7.61945206,186.23,186.19,0.28432314]
[1753360356657,7.61945206,186.24,186.19,7.9037752]
[1753360357768,5.36970412,186.23,186.18,7.61945206]
[1753360357953,7.61945206,186.22,186.17,7.9037752]
[1753360358348,7.61945206,186.21,186.17,0.14216157]
[1753360358555,7.61945206,186.22,186.17,0.14216157]
[1753360358887,7.61945206,186.22,186.17,0.28432314]
[1753360359560,5.37028086,186.21,186.17,0.28432314]
[1753360359752,12.98950717,186.22,186.17,0.28432314]
[1753360359954,12.98950717,186.22,186.17,13.27519531]
[1753360360785,5.37005511,186.22,186.18,7.61945206]
[1753360360960,5.37005511,186.22,186.17,0.28432314]
[1753360361159,7.61945206,186.23,186.17,0.28432314]
[1753360361464,38.72,186.26,186.22,7.61945206]
[1753360361686,0.03,186.27,186.24,7.61945206]
[1753360362554,5.39862363,186.27,186.23,7.61945206]
[1753360363058,7.61945206,186.24,186.19,7.61945206]
[1753360363779,12.98915476,186.24,186.19,7.61945206]
[1753360364675,12.98915476,186.24,186.14,0.06]
[1753360364676,7.61945206,186.2,186.14,0.06]
[1753360364900,7.61945206,186.21,186.16,7.61945206]
[1753360365775,5.37056928,186.2,186.16,7.61945206]
[1753360366781,12.99002134,186.2,186.15,7.61945206]
[1753360367352,12.99002134,186.2,186.14,0.06]
[1753360367353,7.61945206,186.19,186.14,0.06]
[1753360367567,7.61945206,186.18,186.14,0.06]
[1753360367956,12.99088677,186.17,186.14,0.06]
[1753360368181,7.61945206,186.16,186.14,0.06]
[1753360369160,7.61945206,186.15,186.14,0.06]
[1753360370473,12.99146387,186.15,186.14,0.06]
[1753360370993,5.37201181,186.15,186.14,0.06]
[1753360371160,12.99146387,186.15,186.14,0.06]
[1753360372376,51.71146387,186.15,186.14,0.06]
[1753360373278,12.99146387,186.15,186.14,0.06]
[1753360373578,38.72,186.16,186.14,0.06]
[1753360374372,7.61945206,186.18,186.14,0.06]
[1753360374574,51.71066018,186.18,186.14,0.06]
[1753360375156,38.72,186.18,186.14,7.67945206]
[1753360376162,44.09116471,186.18,186.14,7.67945206]
[1753360376772,7.61945206,186.17,186.14,0.06]